fUST/lending_fUST_20241007
["ID","MTS","AMOUNT","RATE_DAILY","PERIOD"]
[339972108,1728245456536,-500.0,0.00014246,2]
[339972109,1728245456547,-500.0,0.00014246,2]
[339972110,1728245456559,-500.0,0.00014246,2]
[339972111,1728245456571,-500.0,0.00014246,2]
[339972112,1728245456582,-500.0,0.00014246,2]
[339972113,1728245456594,-500.0,0.00014246,2]
[339972114,1728245456604,-850.21,0.00014246,2]
[339972115,1728245456615,-700.34,0.00014246,2]
[339972116,1728245456626,-500.0,0.00014246,2]
[339972117,1728245456636,-500.0,0.00014246,2]
[339972118,1728245456647,-793.43,0.00014246,2]
[339972119,1728245456659,-500.0,0.00014246,2]
[339972120,1728245456669,-681.81,0.00014246,2]
[339972121,1728245456681,-500.0,0.00014246,2]
[339972122,1728245456691,-500.0,0.00014246,2]
[339972123,1728245456704,-500.0,0.00014246,2]
[339972124,1728245456716,-500.0,0.00014246,2]
[339972125,1728245456725,-618.07,0.00014246,2]
[339972126,1728245456735,-905.5,0.00014246,2]
[339972127,1728245456745,-500.0,0.00014246,2]
[339972128,1728245456754,-500.0,0.00014246,2]
[339972129,1728245456764,-500.0,0.00014246,2]
[339972130,1728245456773,-500.0,0.00014246,2]
[339972131,1728245456783,-1004.36,0.00014246,2]
[339972132,1728245456794,-769.79,0.00014246,2]
[339972133,1728245456805,-556.25,0.00014246,2]
[339972134,1728245456815,-500.0,0.00014246,2]
[339972135,1728245456826,-704.99,0.00014246,2]
[339972136,1728245456838,-511.68,0.00014246,2]
[339972137,1728245456848,-517.34774392,0.00014246,2]
[339972138,1728245456858,-500.0,0.00014246,2]
[339972139,1728245456868,-500.0,0.00014246,2]
[339972140,1728245456877,-500.0,0.00014246,2]
[339972141,1728245456886,-500.0,0.00014246,2]
[339972142,1728245456895,-500.0,0.00014246,2]
[339972143,1728245456904,-500.0,0.00014246,2]
[339972144,1728245456914,-716.88,0.00014246,2]
[339972145,1728245456923,-522.82863009,0.00014246,2]
[339972146,1728245456932,-500.0,0.00014246,2]
[339972147,1728245456941,-500.0,0.00014246,2]
[339972148,1728245456951,-500.0,0.00014246,2]
[339972149,1728245456960,-500.0,0.00014246,2]
[339972150,1728245456969,-500.0,0.00014246,2]
[339972151,1728245456979,-500.0,0.00014246,2]
[339972152,1728245456988,-502.96,0.00014246,2]
[339972153,1728245456998,-1213.0,0.00014246,2]
[339972154,1728245457007,-500.0,0.00014246,2]
[339972155,1728245457016,-500.0,0.00014246,2]
[339972156,1728245457149,-500.0,0.00014246,2]
[339972157,1728245457159,-500.0,0.00014246,2]
[339972158,1728245457171,-500.0,0.00014246,2]
[339972159,1728245457183,-500.0,0.00014246,2]
[339972160,1728245457195,-175.44680118,0.00014246,2]
[339972161,1728245457205,-324.75283665,0.00014246,2]
[339972162,1728245457216,-500.0,0.00014246,2]
[339972163,1728245457228,-500.0,0.00014246,2]
[339972164,1728245457239,-500.0,0.00014246,2]
[339972165,1728245457249,-500.0,0.00014246,2]
[339972166,1728245457259,-500.0,0.00014246,2]
[339972167,1728245457269,-500.0,0.00014246,2]
[339972168,1728245457279,-640.83,0.00014246,2]
[339972169,1728245457291,-799.58,0.00014246,2]
[339972170,1728245457301,-500.0,0.00014246,2]
[339972171,1728245457310,-2198.44,0.00014246,2]
[339972172,1728245457321,-500.0,0.00014246,2]
[339972173,1728245457331,-500.0,0.00014246,2]
[339972174,1728245457342,-500.0,0.00014246,2]
[339972175,1728245457352,-500.0,0.00014246,2]
[339972176,1728245457361,-500.0,0.00014246,2]
[339972177,1728245457370,-701.74,0.00014246,2]
[339972178,1728245457381,-500.0,0.00014246,2]
[339972179,1728245457391,-500.0,0.00014246,2]
[339972180,1728245457402,-500.0,0.00014246,2]
[339972181,1728245457412,-23220.06,0.00014246,2]
[339972182,1728245457421,-513.24,0.00014246,2]
[339972183,1728245457431,-500.0,0.00014246,2]
[339972184,1728245457442,-500.0,0.00014246,2]
[339972185,1728245457452,-1825.72,0.00014246,2]
[339972186,1728245457461,-500.0,0.00014246,2]
[339972187,1728245457470,-3809.25,0.00014246,2]
[339972188,1728245457480,-500.0,0.00014246,2]
[339972189,1728245457490,-689.01,0.00014246,2]
[339972190,1728245457500,-500.0,0.00014246,2]
[339972191,1728245457509,-500.0,0.00014246,2]
[339972192,1728245457518,-1068.37,0.00014246,2]
[339972193,1728245457527,-500.0,0.00014246,2]
[339972194,1728245457536,-500.0,0.00014246,2]
[339972195,1728245457546,-500.0,0.00014246,2]
[339972196,1728245457555,-500.0,0.00014246,2]
[339972197,1728245457564,-500.0,0.00014246,2]
[339972198,1728245457577,-1019.82,0.00014246,2]
[339972199,1728245457587,-1687.94,0.00014246,2]
[339972200,1728245457597,-500.0,0.00014246,2]
[339972201,1728245457607,-500.0,0.00014246,2]
[339972202,1728245457616,-500.0,0.00014246,2]
[339972203,1728245457626,-500.0,0.00014246,2]
[339972204,1728245457635,-611.72,0.00014246,2]
[339972205,1728245457644,-500.0,0.00014246,2]
[339972206,1728245457654,-500.0,0.00014246,2]
[339972207,1728245457663,-500.0,0.00014246,2]
[339972208,1728245457673,-500.0,0.00014246,2]
[339972209,1728245457682,-500.0,0.00014246,2]
[339972210,1728245457691,-500.0,0.00014246,2]
[339972211,1728245457700,-564.15,0.00014246,2]
[339972212,1728245457710,-500.0,0.00014246,2]
[339972213,1728245457720,-608.82,0.00014246,2]
[339972214,1728245457729,-605.81,0.00014246,2]
[339972215,1728245457739,-1003.97,0.00014246,2]
[339972216,1728245457751,-500.0,0.00014246,2]
[339972217,1728245457760,-500.0,0.00014246,2]
[339972218,1728245457771,-500.0,0.00014246,2]
[339972219,1728245457781,-541.62,0.00014246,2]
[339972220,1728245457793,-500.0,0.00014246,2]
[339972221,1728245457803,-500.0,0.00014246,2]
[339972222,1728245457813,-589.17,0.00014246,2]
[339972223,1728245457825,-500.0,0.00014246,2]
[339972224,1728245457835,-1166.46,0.00014246,2]
[339972225,1728245457844,-500.0,0.00014246,2]
[339972226,1728245457853,-500.0,0.00014246,2]
[339972227,1728245457863,-606.03,0.00014246,2]
[339972228,1728245457874,-500.0,0.00014246,2]
[339972229,1728245457884,-154.72233342,0.00014246,2]
[339972230,1728245457894,-500.0,0.00014246,2]
[339972231,1728245457904,-578.55,0.00014246,2]
[339972232,1728245457915,-500.0,0.00014246,2]
[339972233,1728245457927,-526.31,0.00014246,2]
[339972234,1728245457939,-500.0,0.00014246,2]
[339972235,1728245457949,-500.0,0.00014246,2]
[339972236,1728245457960,-500.0,0.00014246,2]
[339972237,1728245457971,-500.0,0.00014246,2]
[339972238,1728245457981,-500.0,0.00014246,2]
[339972239,1728245457992,-616.98,0.00014246,2]
[339972240,1728245458003,-500.0,0.00014246,2]
[339972241,1728245458015,-500.0,0.00014246,2]
[339972242,1728245458025,-500.0,0.00014246,2]
[339972243,1728245458037,-500.0,0.00014246,2]
[339972244,1728245458046,-500.0,0.00014246,2]
[339972245,1728245458057,-500.0,0.00014246,2]
[339972246,1728245458069,-500.0,0.00014246,2]
[339972247,1728245458081,-500.0,0.00014246,2]
[339972248,1728245458092,-667.06,0.00014246,2]
[339972249,1728245458101,-500.0,0.00014246,2]
[339972250,1728245458111,-500.0,0.00014246,2]
[339972251,1728245458120,-500.0,0.00014246,2]
[339972252,1728245458131,-500.0,0.00014246,2]
[339972253,1728245458145,-500.0,0.00014246,2]
[339972254,1728245458156,-500.0,0.00014246,2]
[339972255,1728245458167,-500.0,0.00014246,2]
[339972256,1728245458179,-500.0,0.00014246,2]
[339972257,1728245458192,-500.0,0.00014246,2]
[339972258,1728245458205,-500.0,0.00014246,2]
[339972259,1728245458215,-500.0,0.00014246,2]
[339972260,1728245458229,-500.0,0.00014246,2]
[339972261,1728245458240,-500.0,0.00014246,2]
[339972262,1728245458250,-500.0,0.00014246,2]
[339972263,1728245458259,-1854.38,0.00014246,2]
[339972264,1728245458269,-500.0,0.00014246,2]
[339972265,1728245458278,-500.0,0.00014246,2]
[339972266,1728245458287,-572.04178434,0.00014246,2]
[339972267,1728245458297,-2983.12,0.00014246,2]
[339972268,1728245458307,-500.0,0.00014246,2]
[339972269,1728245458317,-209.25741829,0.00014246,2]
[339972270,1728245458336,-500.0,0.00014246,2]
[339972271,1728245458345,-667.95,0.00014246,2]
[339972272,1728245458354,-500.0,0.00014246,2]
[339972273,1728245458363,-830.07,0.00014246,2]
[339972274,1728245458373,-518.7,0.00014246,2]
[339972275,1728245458382,-500.0,0.00014246,2]
[339972276,1728245458391,-500.0,0.00014246,2]
[339972277,1728245458401,-500.0,0.00014246,2]
[339972278,1728245458410,-2165.89,0.00014246,2]
[339972279,1728245458419,-500.0,0.00014246,2]
[339972280,1728245458428,-500.0,0.00014246,2]
[339972281,1728245458437,-880.03,0.00014246,2]
[339972282,1728245458446,-3094.43,0.00014246,2]
[339972283,1728245458455,-701.44,0.00014246,2]
[339972284,1728245458464,-500.0,0.00014246,2]
[339972285,1728245458474,-500.0,0.00014246,2]
[339972286,1728245458483,-500.0,0.00014246,2]
[339972287,1728245458493,-1213.43,0.00014246,2]
[339972288,1728245458503,-4696.79,0.00014246,2]
[339972289,1728245458512,-500.0,0.00014246,2]
[339972290,1728245458523,-505.3,0.00014246,2]
[339972291,1728245458532,-500.0,0.00014246,2]
[339972292,1728245458542,-507.4,0.00014246,2]
[339972293,1728245458551,-500.0,0.00014246,2]
[339972294,1728245458561,-500.0,0.00014246,2]
[339972295,1728245458573,-500.0,0.00014246,2]
[339972296,1728245458583,-500.0,0.00014246,2]
[339972297,1728245458593,-327.12778555,0.00014247,2]
[339972298,1728245458602,-1500.0,0.00014247,2]
[339972299,1728245458611,-1500.0,0.00014247,2]
[339972300,1728245458620,-1500.0,0.00014247,2]
[339972301,1728245458630,-426.19351933,0.00014247,2]
[339972302,1728245458640,-1502.9212528,0.00014247,2]
[339972303,1728245458650,-1500.0,0.00014247,2]
[339972304,1728245458661,-1500.0,0.00014247,2]
[339972305,1728245458672,-1500.0,0.00014247,2]
[339972306,1728245458682,-500.0,0.00014273,2]
[339972307,1728245458693,-500.0,0.00014273,2]
[339972308,1728245458703,-500.0,0.00014273,2]
[339972309,1728245458714,-500.0,0.00014273,2]
[339972310,1728245458725,-166.666666,0.0001434,2]
[339972311,1728245458736,-232.7896852,0.00014384,2]
[339972312,1728245458747,-901.64252316,0.00014384,2]
[339972313,1728245458756,-2000.0,0.00014384,2]
[339972314,1728245458768,-1117.42511815,0.00014384,2]
[339972315,1728245458777,-2000.0,0.00014384,2]
[339972316,1728245458787,-2000.0,0.00014384,2]
[339972317,1728245458800,-15170.489139,0.00014384,2]
[339972318,1728245458810,-5594.6455026,0.00014408,2]
[339972319,1728245458822,-1000.0,0.0001441,2]
[339972320,1728245458832,-1000.0,0.0001441,2]
[339972321,1728245458843,-505.5511332,0.0001441,2]
[339972322,1728245458853,-184.0,0.00014442,2]
[339972323,1728245458864,-160.0,0.00014519,2]
[339972324,1728245458873,-150.0,0.0001452,2]
[339972325,1728245458883,-461.0,0.0001452,2]
[339972326,1728245458894,-500.0,0.0001452,2]
[339972327,1728245458903,-212.096226,0.0001452,2]
[339972328,1728245458912,-212.096226,0.0001452,2]
[339972329,1728245458922,-151.0,0.0001452,2]
[339972330,1728245458931,-500.0,0.0001452,2]
[339972331,1728245458941,-151.0,0.0001452,2]
[339972332,1728245458951,-151.0,0.0001452,2]
[339972333,1728245458960,-321.9159,0.0001452,2]
[339972334,1728245458969,-321.9159,0.0001452,2]
[339972335,1728245458978,-500.0,0.0001452,2]
[339972336,1728245458988,-500.0,0.0001452,2]
[339972337,1728245458998,-151.0,0.0001452,2]
[339972338,1728245459007,-500.0,0.0001452,2]
[339972339,1728245459017,-538.21,0.0001452,2]
[339972340,1728245459027,-151.0,0.0001452,2]
[339972341,1728245459037,-500.0,0.0001452,2]
[339972342,1728245459048,-500.0,0.0001452,2]
[339972343,1728245459059,-500.0,0.0001452,2]
[339972344,1728245459070,-500.0,0.0001452,2]
[339972345,1728245459082,-500.0,0.0001452,2]
[339972346,1728245459093,-561.59836151,0.0001452,2]
[339972347,1728245459104,-500.0,0.0001452,2]
[339972348,1728245459115,-690.31,0.0001452,2]
[339972349,1728245459124,-500.0,0.0001452,2]
[339972350,1728245459136,-753.75,0.0001452,2]
[339972351,1728245459151,-500.0,0.0001452,2]
[339972352,1728245459164,-500.0,0.0001452,2]
[339972353,1728245459174,-500.0,0.0001452,2]
[339972354,1728245459186,-198.069506,0.0001452,2]
[339972355,1728245459197,-500.0,0.0001452,2]
[339972356,1728245459207,-151.0,0.0001452,2]
[339972357,1728245459217,-560.51,0.0001452,2]
[339972358,1728245459227,-500.0,0.0001452,2]
[339972359,1728245459239,-693.21,0.0001452,2]
[339972360,1728245459250,-750.67,0.0001452,2]
[339972361,1728245459260,-624.79,0.0001452,2]
[339972362,1728245459271,-546.88091887,0.0001452,2]
[339972363,1728245459283,-500.0,0.0001452,2]
[339972364,1728245459292,-500.0,0.0001452,2]
[339972365,1728245459302,-500.0,0.0001452,2]
[339972366,1728245459313,-151.0,0.0001452,2]
[339972367,1728245459324,-534.3781623,0.0001452,2]
[339972368,1728245459333,-500.0,0.0001452,2]
[339972369,1728245459343,-500.0,0.0001452,2]
[339972370,1728245459352,-500.0,0.0001452,2]
[339972371,1728245459362,-621.15,0.0001452,2]
[339972372,1728245459371,-573.68,0.0001452,2]
[339972373,1728245459380,-500.0,0.0001452,2]
[339972374,1728245459390,-193.488427,0.0001452,2]
[339972375,1728245459399,-500.0,0.0001452,2]
[339972376,1728245459408,-446.16205082,0.0001452,2]
[339972377,1728245459418,-151.0,0.0001452,2]
[339972378,1728245459427,-500.0,0.0001452,2]
[339972379,1728245459437,-558.4820321,0.0001452,2]
[339972380,1728245459446,-151.0,0.0001452,2]
[339972381,1728245459455,-500.0,0.0001452,2]
[339972382,1728245459464,-566.65,0.0001452,2]
[339972383,1728245459473,-151.0,0.0001452,2]
[339972384,1728245459483,-500.0,0.0001452,2]
[339972385,1728245459492,-500.0,0.0001452,2]
[339972386,1728245459502,-1154.19,0.0001452,2]
[339972387,1728245459511,-500.0,0.0001452,2]
[339972388,1728245459520,-500.0,0.0001452,2]
[339972389,1728245459530,-500.0,0.0001452,2]
[339972390,1728245459539,-151.0,0.0001452,2]
[339972391,1728245459548,-500.0,0.0001452,2]
[339972392,1728245459558,-181.52706311,0.0001452,2]
[339972393,1728245459567,-511.18,0.0001452,2]
[339972394,1728245459578,-1179.38,0.0001452,2]
[339972395,1728245459588,-500.0,0.0001452,2]
[339972396,1728245459597,-500.0,0.0001452,2]
[339972397,1728245459606,-500.0,0.0001452,2]
[339972398,1728245459734,-751.93,0.0001452,2]
[339972399,1728245459744,-500.0,0.0001452,2]
[339972400,1728245459754,-151.0,0.0001452,2]
[339972401,1728245459765,-151.0,0.0001452,2]
[339972402,1728245459775,-500.0,0.0001452,2]
[339972403,1728245459786,-151.0,0.0001452,2]
[339972404,1728245459798,-500.0,0.0001452,2]
[339972405,1728245459809,-734.54,0.0001452,2]
[339972406,1728245459818,-500.0,0.0001452,2]
[339972407,1728245459830,-244.100492,0.0001452,2]
[339972408,1728245459840,-151.0,0.0001452,2]
[339972409,1728245459849,-500.0,0.0001452,2]
[339972410,1728245459858,-500.0,0.0001452,2]
[339972411,1728245459868,-244.100492,0.0001452,2]
[339972412,1728245459877,-500.0,0.0001452,2]
[339972413,1728245459887,-1105.529882,0.0001452,2]
[339972414,1728245459896,-500.0,0.0001452,2]
[339972415,1728245459905,-500.0,0.0001452,2]
[339972416,1728245459914,-1105.529882,0.0001452,2]
[339972417,1728245459923,-151.0,0.0001452,2]
[339972418,1728245459933,-500.0,0.0001452,2]
[339972419,1728245459942,-500.0,0.0001452,2]
[339972420,1728245459951,-500.0,0.0001452,2]
[339972421,1728245459960,-782.03,0.0001452,2]
[339972422,1728245459970,-500.0,0.0001452,2]
[339972423,1728245459978,-500.0,0.0001452,2]
[339972424,1728245459989,-500.0,0.0001452,2]
[339972425,1728245459999,-500.0,0.0001452,2]
[339972426,1728245460010,-500.0,0.0001452,2]
[339972427,1728245460020,-500.0,0.0001452,2]
[339972428,1728245460030,-600.57,0.0001452,2]
[339972429,1728245460040,-500.0,0.0001452,2]
[339972430,1728245460050,-1034.12,0.0001452,2]
[339972431,1728245460060,-576.29530278,0.0001452,2]
[339972432,1728245460070,-500.0,0.0001452,2]
[339972433,1728245460080,-500.0,0.0001452,2]
[339972434,1728245460091,-500.0,0.0001452,2]
[339972435,1728245460102,-500.0,0.0001452,2]
[339972436,1728245460114,-500.0,0.0001452,2]
[339972437,1728245460124,-500.0,0.0001452,2]
[339972438,1728245460135,-500.0,0.0001452,2]
[339972439,1728245460150,-500.0,0.0001452,2]
[339972440,1728245460162,-500.0,0.0001452,2]
[339972441,1728245460173,-151.0,0.0001452,2]
[339972442,1728245460184,-500.0,0.0001452,2]
[339972443,1728245460195,-567.02,0.0001452,2]
[339972444,1728245460205,-500.0,0.0001452,2]
[339972445,1728245460218,-547.51,0.0001452,2]
[339972446,1728245460230,-620.41,0.0001452,2]
[339972447,1728245460240,-500.0,0.0001452,2]
[339972448,1728245460251,-500.0,0.0001452,2]
[339972449,1728245460263,-500.0,0.0001452,2]
[339972450,1728245460273,-500.0,0.0001452,2]
[339972451,1728245460284,-500.0,0.0001452,2]
[339972452,1728245460294,-622.64,0.0001452,2]
[339972453,1728245460306,-500.0,0.0001452,2]
[339972454,1728245460316,-1766.09,0.0001452,2]
[339972455,1728245460328,-1018.45,0.0001452,2]
[339972456,1728245460339,-518.15892366,0.0001452,2]
[339972457,1728245460350,-500.0,0.0001452,2]
[339972458,1728245460360,-500.0,0.0001452,2]
[339972459,1728245460372,-646.49,0.0001452,2]
[339972460,1728245460383,-500.0,0.0001452,2]
[339972461,1728245460395,-500.0,0.0001452,2]
[339972462,1728245460406,-500.0,0.0001452,2]
[339972463,1728245460416,-151.0,0.0001452,2]
[339972464,1728245460425,-500.0,0.0001452,2]
[339972465,1728245460435,-500.0,0.0001452,2]
[339972466,1728245460447,-500.0,0.0001452,2]
[339972467,1728245460460,-151.0,0.0001452,2]
[339972468,1728245460471,-500.0,0.0001452,2]
[339972469,1728245460481,-548.58,0.0001452,2]
[339972470,1728245460490,-500.0,0.0001452,2]
[339972471,1728245460500,-500.0,0.0001452,2]
[339972472,1728245460509,-500.0,0.0001452,2]
[339972473,1728245460519,-500.0,0.0001452,2]
[339972474,1728245460529,-500.0,0.0001452,2]
[339972475,1728245460539,-500.0,0.0001452,2]
[339972476,1728245460551,-209.133972,0.0001452,2]
[339972477,1728245460562,-237.61263847,0.0001452,2]
[339972478,1728245460572,-642.06,0.0001452,2]
[339972479,1728245460582,-500.0,0.0001452,2]
[339972480,1728245460592,-500.0,0.0001452,2]
[339972481,1728245460603,-500.0,0.0001452,2]
[339972482,1728245460613,-500.0,0.0001452,2]
[339972483,1728245460624,-732.29,0.0001452,2]
[339972484,1728245460634,-678.84,0.0001452,2]
[339972485,1728245460644,-744.55,0.0001452,2]
[339972486,1728245460656,-500.0,0.0001452,2]
[339972487,1728245460666,-500.0,0.0001452,2]
[339972488,1728245460675,-500.0,0.0001452,2]
[339972489,1728245460685,-500.0,0.0001452,2]
[339972490,1728245460695,-610.927981,0.0001452,2]
[339972491,1728245460704,-500.0,0.0001452,2]
[339972492,1728245460713,-528.86496427,0.0001452,2]
[339972493,1728245460722,-500.0,0.0001452,2]
[339972494,1728245460732,-610.927981,0.0001452,2]
[339972495,1728245460741,-500.0,0.0001452,2]
[339972496,1728245460751,-500.0,0.0001452,2]
[339972497,1728245460760,-500.0,0.0001452,2]
[339972498,1728245460770,-701.53,0.0001452,2]
[339972499,1728245460779,-977.67,0.0001452,2]
[339972500,1728245460788,-500.0,0.0001452,2]
[339972501,1728245460798,-500.0,0.0001452,2]
[339972502,1728245460808,-631.97,0.0001452,2]
[339972503,1728245460816,-500.0,0.0001452,2]
[339972504,1728245460826,-151.0,0.0001452,2]
[339972505,1728245460836,-740.81,0.0001452,2]
[339972506,1728245460845,-566.27,0.0001452,2]
[339972507,1728245460858,-151.0,0.0001452,2]
[339972508,1728245460876,-1278.33,0.0001452,2]
[339972509,1728245460892,-500.0,0.0001452,2]
[339972510,1728245460906,-500.0,0.0001452,2]
[339972511,1728245460922,-500.0,0.0001452,2]
[339972512,1728245460937,-500.0,0.0001452,2]
[339972513,1728245460953,-711.1,0.0001452,2]
[339972514,1728245460969,-500.0,0.0001452,2]
[339972515,1728245460984,-500.0,0.0001452,2]
[339972516,1728245460998,-500.0,0.0001452,2]
[339972517,1728245461014,-500.0,0.0001452,2]
[339972518,1728245461028,-500.0,0.0001452,2]
[339972519,1728245461042,-500.0,0.0001452,2]
[339972520,1728245461058,-500.0,0.0001452,2]
[339972521,1728245461075,-500.0,0.0001452,2]
[339972522,1728245461092,-1687.43,0.0001452,2]
[339972523,1728245461110,-500.0,0.0001452,2]
[339972524,1728245461127,-500.0,0.0001452,2]
[339972525,1728245461140,-500.0,0.0001452,2]
[339972526,1728245461157,-500.0,0.0001452,2]
[339972527,1728245461173,-500.0,0.0001452,2]
[339972528,1728245461188,-733.55402,0.0001452,2]
[339972529,1728245461204,-500.0,0.0001452,2]
[339972530,1728245461219,-500.0,0.0001452,2]
[339972531,1728245461232,-500.0,0.0001452,2]
[339972532,1728245461248,-733.55402,0.0001452,2]
[339972533,1728245461263,-500.0,0.0001452,2]
[339972534,1728245461276,-500.0,0.0001452,2]
[339972535,1728245461290,-559.4,0.0001452,2]
[339972536,1728245461305,-620.94,0.0001452,2]
[339972537,1728245461320,-570.64,0.0001452,2]
[339972538,1728245461334,-590.68,0.0001452,2]
[339972539,1728245461348,-525.69,0.0001452,2]
[339972540,1728245461362,-731.95,0.0001452,2]
[339972541,1728245461376,-500.0,0.0001452,2]
[339972542,1728245461391,-151.0,0.0001452,2]
[339972543,1728245461405,-500.0,0.0001452,2]
[339972544,1728245461417,-1541.796647,0.0001452,2]
[339972545,1728245461431,-500.0,0.0001452,2]
[339972546,1728245461444,-1541.796647,0.0001452,2]
[339972547,1728245461457,-500.0,0.0001452,2]
[339972548,1728245461470,-224.015403,0.0001452,2]
[339972549,1728245461483,-164.707236,0.0001452,2]
[339972550,1728245461497,-749.78,0.0001452,2]
[339972551,1728245461511,-500.0,0.0001452,2]
[339972552,1728245461525,-500.0,0.0001452,2]
[339972553,1728245461537,-164.707236,0.0001452,2]
[339972554,1728245461551,-500.0,0.0001452,2]
[339972555,1728245461564,-500.0,0.0001452,2]
[339972556,1728245461578,-500.0,0.0001452,2]
[339972557,1728245461592,-500.0,0.0001452,2]
[339972558,1728245461606,-500.0,0.0001452,2]
[339972559,1728245461620,-850.21,0.0001452,2]
[339972560,1728245461636,-700.34,0.0001452,2]
[339972561,1728245461649,-500.0,0.0001452,2]
[339972562,1728245461663,-500.0,0.0001452,2]
[339972563,1728245461676,-793.43,0.0001452,2]
[339972564,1728245461693,-500.0,0.0001452,2]
[339972565,1728245461708,-681.81,0.0001452,2]
[339972566,1728245461722,-500.0,0.0001452,2]
[339972567,1728245461736,-161.12424589,0.0001452,2]
[339972568,1728245461750,-500.0,0.0001452,2]
[339972569,1728245461764,-500.0,0.0001452,2]
[339972570,1728245461777,-3394.923181,0.0001452,2]
[339972571,1728245461792,-618.07,0.0001452,2]
[339972572,1728245461804,-905.5,0.0001452,2]
[339972573,1728245461818,-151.0,0.0001452,2]
[339972574,1728245461832,-232.89053,0.0001452,2]
[339972575,1728245461844,-3394.923181,0.0001452,2]
[339972576,1728245461857,-500.0,0.0001452,2]
[339972577,1728245461871,-500.0,0.0001452,2]
[339972578,1728245461884,-500.0,0.0001452,2]
[339972579,1728245461897,-500.0,0.0001452,2]
[339972580,1728245461910,-232.89053,0.0001452,2]
[339972581,1728245461923,-1004.36,0.0001452,2]
[339972582,1728245461935,-769.79,0.0001452,2]
[339972583,1728245461950,-556.25,0.0001452,2]
[339972584,1728245461963,-500.0,0.0001452,2]
[339972585,1728245461977,-704.99,0.0001452,2]
[339972586,1728245461992,-511.68,0.0001452,2]
[339972587,1728245462005,-151.0,0.0001452,2]
[339972588,1728245462020,-500.0,0.0001452,2]
[339972589,1728245462036,-500.0,0.0001452,2]
[339972590,1728245462048,-500.0,0.0001452,2]
[339972591,1728245462063,-500.0,0.0001452,2]
[339972592,1728245462077,-500.0,0.0001452,2]
[339972593,1728245462091,-500.0,0.0001452,2]
[339972594,1728245462104,-716.88,0.0001452,2]
[339972595,1728245462118,-500.0,0.0001452,2]
[339972596,1728245462133,-500.0,0.0001452,2]
[339972597,1728245462151,-400.39517653,0.0001452,2]
[339972598,1728245462165,-500.0,0.0001452,2]
[339972599,1728245462180,-478.99362412,0.0001452,2]
[339972600,1728245462194,-500.0,0.0001452,2]
[339972601,1728245462207,-151.0,0.0001452,2]
[339972602,1728245462222,-1213.0,0.0001452,2]
[339972603,1728245462235,-502.96,0.0001452,2]
[339972604,1728245462250,-519.58115313,0.0001452,2]
[339972605,1728245462263,-500.0,0.0001452,2]
[339972606,1728245462276,-647.8932146,0.0001452,2]
[339972607,1728245462291,-396.110102,0.0001452,2]